bitfinex/quotes_BTCUSD_20251219
["timestamp","ask_amount","ask_price","bid_price","bid_amount"]
[1766143748907,2.17e-06,88428.0,88427.0,0.32445381]
[1766143749892,2.17e-06,88428.0,88427.0,0.26791]
[1766143750318,2.17e-06,88428.0,88424.0,0.06785423]
[1766143750492,2.17e-06,88428.0,88425.0,0.06785399]
[1766143750845,0.00568,88437.0,88429.0,0.0138085]
[1766143751170,0.00568,88437.0,88430.0,0.26594]
[1766143751322,0.00568,88437.0,88429.0,0.0025]
[1766143752910,0.00568,88437.0,88429.0,0.0138085]
[1766143753120,0.00568,88437.0,88431.0,0.01380825]
[1766143753710,0.00147886,88440.0,88433.0,0.0025]
[1766143753862,0.00568,88441.0,88434.0,0.1356]
[1766143754057,0.00568,88441.0,88434.0,0.25592]
[1766143755838,0.00568,88441.0,88431.0,0.0025]
[1766143756039,0.13133,88437.0,88431.0,0.0025]
[1766143756247,0.24287,88436.0,88431.0,0.0025]
[1766143757264,0.24287,88436.0,88431.0,0.01616615]
[1766143757770,0.00568,88441.0,88431.0,0.01616615]
[1766143758185,0.00568,88441.0,88431.0,0.01380825]
[1766143758569,0.00568,88441.0,88431.0,0.13977825]
[1766143758781,0.00568,88441.0,88432.0,0.02610493]
[1766143758980,0.00568,88441.0,88432.0,0.01479681]
[1766143759594,0.00568,88441.0,88433.0,0.12597]
[1766143760133,0.0002,88442.0,88437.0,0.10753]
[1766143760305,0.00608,88448.0,88438.0,0.01616507]
[1766143760506,0.00608,88448.0,88438.0,0.0025]
[1766143760713,0.00608,88448.0,88438.0,0.01616507]
[1766143762103,0.23595,88448.0,88438.0,0.01616507]
[1766143762892,0.0004,88448.0,88440.0,0.12597]
[1766143763089,0.0004,88448.0,88438.0,0.10817]
[1766143764008,0.01130646,88445.0,88438.0,0.0025]
[1766143764249,0.22987,88443.0,88436.0,0.00568]
[1766143764551,0.25544436,88442.0,88436.0,0.00568]
[1766143764698,0.38615436,88442.0,88436.0,0.00568]
[1766143764890,0.36058,88442.0,88436.0,0.00568]
[1766143765090,0.02557436,88441.0,88436.0,0.00568]
[1766143770507,0.38615436,88441.0,88436.0,0.00568]
[1766143770671,0.36058,88441.0,88436.0,0.00568]
[1766143771574,0.36058,88439.0,88429.0,0.0025]
[1766143771802,0.22987,88438.0,88432.0,0.00568]
[1766143773240,0.02557436,88438.0,88432.0,0.00568]
[1766143773442,0.36058,88447.0,88433.0,0.12597]
[1766143773739,0.22987,88444.0,88432.0,0.11108]
[1766143773922,0.13071,88443.0,88432.0,0.11108]
[1766143774117,0.22302,88442.0,88432.0,0.11108]
[1766143774523,0.22302,88442.0,88432.0,0.23348]
[1766143774725,0.22302,88442.0,88433.0,0.01589569]
[1766143775139,0.35503,88439.0,88429.0,0.0025]
[1766143777532,0.22302,88439.0,88434.0,0.01130786]
[1766143777736,0.22302,88439.0,88432.0,0.00568]
[1766143781532,0.35503,88439.0,88432.0,0.00568]
[1766143783226,0.24749536,88438.0,88432.0,0.00568]
[1766143783426,0.37950536,88438.0,88432.0,0.00568]
[1766143783592,0.35503,88438.0,88432.0,0.00568]
[1766143783793,0.22302,88438.0,88432.0,0.00568]
[1766143783991,0.02447536,88437.0,88432.0,0.00568]
[1766143784595,0.24749536,88437.0,88432.0,0.00568]
[1766143785207,0.22302,88435.0,88420.0,0.1224]
[1766143785418,0.001099,88420.0,88409.0,0.04528]
[1766143785657,0.22302,88419.0,88411.0,0.0113108]
[1766143785856,0.22302,88419.0,88411.0,0.0025]
[1766143786059,0.22302,88419.0,88410.0,0.00568]
[1766143786292,0.00568,88429.0,88412.0,0.0025]
[1766143786293,0.02447536,88423.0,88412.0,0.0025]
[1766143786510,0.13201,88424.0,88412.0,0.0025]
[1766143786710,0.02447536,88423.0,88412.0,0.0025]
[1766143789293,0.02447536,88423.0,88410.0,0.10185]
[1766143789294,0.22302,88421.0,88410.0,0.10185]
[1766143789535,0.22302,88418.0,88413.0,0.0025]
[1766143789809,0.22302,88418.0,88411.0,0.00568]
[1766143791855,0.2287,88424.0,88411.0,0.00568]
[1766143792054,0.02447536,88423.0,88411.0,0.00568]
[1766143792262,0.24749536,88423.0,88411.0,0.00568]
[1766143794312,0.22302,88422.0,88411.0,0.00568]
[1766143794461,0.35503,88422.0,88411.0,0.00568]
[1766143794867,0.00568,88424.0,88411.0,0.00568]
[1766143795057,0.22302,88419.0,88411.0,0.00568]
[1766143795251,0.35503,88419.0,88411.0,0.00568]
[1766143796002,0.35503,88417.0,88411.0,0.00568]
[1766143797263,0.06786614,88410.0,88400.0,0.0025]
[1766143797480,0.06786614,88410.0,88401.0,0.00568]
[1766143797481,0.02447536,88409.0,88401.0,0.00568]
[1766143797683,0.01131132,88407.0,88390.0,0.04528]
[1766143797879,0.35503,88400.0,88391.0,0.00568]
[1766143798132,0.35503,88400.0,88392.0,0.00568]
[1766143798528,0.22302,88404.0,88392.0,0.00576217]
[1766143798725,0.22302,88402.0,88392.0,0.00576217]
[1766143798890,0.02447536,88401.0,88392.0,0.00576217]
[1766143800508,0.02447536,88401.0,88392.0,0.01707541]
[1766143800714,0.02447536,88413.0,88402.0,0.1224]
[1766143800914,0.22302,88419.0,88399.0,0.05656155]
[1766143800915,0.00568,88411.0,88403.0,0.1224]
[1766143801306,0.00568,88411.0,88400.0,0.0025]
[1766143801510,0.00568,88411.0,88402.0,0.0025]
[1766143803655,0.35503,88422.0,88405.0,0.1224]
[1766143803855,0.02714134,88416.0,88406.0,0.1224]
[1766143804471,0.00568,88417.0,88408.0,0.12245]
[1766143805433,0.22552,88422.0,88410.0,0.084]
[1766143805637,0.00568,88421.0,88413.0,0.12245]
[1766143805835,0.03398938,88426.0,88414.0,0.0025]
[1766143805985,0.34505,88427.0,88414.0,0.0025]
[1766143805986,0.00568,88423.0,88414.0,0.0025]
[1766143806655,0.03282134,88429.0,88414.0,0.0025]
[1766143806851,0.21723,88420.0,88414.0,0.00818]
[1766143807211,0.12782,88425.0,88414.0,0.00818]
[1766143807414,0.12782,88422.0,88414.0,0.0025]
[1766143807689,0.01130953,88421.0,88414.0,1e-06]
[1766143807818,0.34505,88414.0,88402.0,0.00568]
[1766143808178,0.21723,88413.0,88402.0,0.00568]
[1766143808368,0.34505,88412.0,88402.0,0.00568]
[1766143810620,0.06786331,88413.0,88400.0,0.00568]
[1766143810819,0.21723,88408.0,88400.0,0.00568]
[1766143812891,0.216131,88408.0,88400.0,0.00568]
[1766143813506,0.12782,88414.0,88400.0,0.00568]
[1766143813705,0.03282134,88415.0,88400.0,0.00568]
[1766143813706,0.00568,88415.0,88405.0,0.12245]
[1766143814053,0.02714134,88414.0,88405.0,0.12245]
[1766143814254,0.02714134,88414.0,88404.0,0.08485]
[1766143815096,0.02714134,88414.0,88400.0,0.00568]
[1766143815097,0.001099,88404.0,88400.0,0.00568]
[1766143815610,0.34505,88410.0,88400.0,0.00568]
[1766143816532,0.1335,88415.0,88403.0,0.13376183]
[1766143816676,0.1335,88415.0,88405.0,0.12245]
[1766143816677,0.00568,88415.0,88405.0,0.12245]
[1766143816878,0.00568,88415.0,88400.0,0.00568]
[1766143817127,0.33829,88413.0,88400.0,0.00568]
[1766143817540,0.33829,88413.0,88400.0,0.12642]
[1766143818373,0.00568,88415.0,88404.0,0.05655814]
[1766143818591,0.0025,88421.0,88407.0,0.01131132]
[1766143818788,0.0025,88421.0,88413.0,0.12074]
[1766143818942,0.0025,88423.0,88413.0,0.12074]
[1766143819147,0.0025,88423.0,88411.0,0.07939]
[1766143819360,0.34079,88423.0,88411.0,0.07939]
[1766143819819,0.35209927,88423.0,88411.0,0.07939]
[1766143820169,0.34079,88423.0,88411.0,0.07939]
[1766143820570,0.12512,88419.0,88411.0,0.00568]
[1766143820790,0.33829,88416.0,88409.0,0.00568]
[1766143820994,0.001099,88409.0,88405.0,0.00568]
[1766143821278,0.21317,88407.0,88404.0,0.00568]
[1766143821517,0.21317,88407.0,88400.0,0.00568]
[1766143822408,0.21317,88406.0,88400.0,0.00568]
[1766143822775,0.33829,88405.0,88400.0,0.00568]
[1766143823185,0.21317,88405.0,88400.0,0.00568]
[1766143824735,0.12512,88410.0,88400.0,0.00568]
[1766143825836,0.0025,88421.0,88405.0,0.09629]
[1766143826039,0.0025,88419.0,88408.0,0.12074]
[1766143827986,0.00568,88420.0,88409.0,0.09723]
[1766143828112,0.00568,88420.0,88410.0,0.20241634]
[1766143828325,0.00568,88426.0,88413.0,0.01131055]
[1766143828518,0.00568,88426.0,88414.0,0.12074]
[1766143828982,0.23015889,88426.0,88413.0,0.09397]
[1766143829143,0.33829,88425.0,88413.0,0.09397]
[1766143829344,0.33829,88424.0,88411.0,0.0025]
[1766143829729,0.21317,88424.0,88412.0,0.13205068]
[1766143829932,0.21317,88424.0,88413.0,0.01131055]
[1766143830129,0.21317,88424.0,88414.0,0.01131042]
[1766143830533,0.00568,88426.0,88416.0,0.12074]
[1766143830734,0.21317,88431.0,88418.0,0.12074]
[1766143830735,0.00568,88430.0,88418.0,0.12074]
[1766143830954,0.00568,88430.0,88419.0,0.02261957]
[1766143831120,0.33829,88429.0,88419.0,0.02261957]
[1766143831321,0.21317,88428.0,88416.0,0.00568]
[1766143832158,0.21317,88428.0,88416.0,0.00576217]
[1766143835102,0.22439,88424.0,88416.0,0.00576217]
[1766143835308,0.22439,88422.0,88416.0,0.00576217]
[1766143835735,0.00109683,88416.0,88400.0,0.19387096]
[1766143835931,0.00109683,88416.0,88394.0,0.12731]
[1766143835932,0.19687467,88412.0,88394.0,0.12731]
[1766143836140,0.3534,88410.0,88395.0,0.00568]
[1766143836342,0.22439,88409.0,88395.0,0.07355665]
[1766143836542,0.22439,88409.0,88397.0,0.06787541]
[1766143836946,0.22439,88409.0,88399.0,0.01131234]
[1766143837353,0.22439,88409.0,88399.0,0.06787382]
[1766143838194,0.22439,88409.0,88399.0,0.01131234]
[1766143839080,0.22439,88409.0,88401.0,0.01131208]
[1766143839241,0.22439,88409.0,88400.0,0.06787305]
[1766143839444,0.22439,88409.0,88400.0,0.01131221]
[1766143839894,0.22439,88409.0,88400.0,0.01699221]
[1766143840099,0.22439,88409.0,88400.0,0.00568]
[1766143840652,0.13469,88415.0,88401.0,0.21219]
[1766143840653,0.00568,88415.0,88401.0,0.21219]
[1766143840860,0.00568,88415.0,88402.0,0.12731]
[1766143842365,0.00568,88415.0,88403.0,0.08358]
[1766143842567,0.00568,88415.0,88404.0,0.12731]
[1766143842744,0.00568,88415.0,88404.0,0.1386217]
[1766143842946,0.00568,88415.0,88404.0,0.12731]
[1766143843126,0.12901,88414.0,88400.0,0.00568]
[1766143843328,0.001097,88404.0,88400.0,0.00568]
[1766143843669,0.22439,88413.0,88402.0,0.12731]
[1766143844227,0.12901,88412.0,88401.0,0.08295]
[1766143844432,0.22439,88411.0,88397.0,0.12731]
[1766143844646,0.22439,88409.0,88398.0,0.00568]
[1766143845069,0.22439,88409.0,88397.0,0.12731]
[1766143845273,0.22439,88409.0,88399.0,0.00568]
[1766143847353,0.3534,88406.0,88398.0,0.00568]
[1766143847588,0.001097,88399.0,88397.0,0.00568]
[1766143847807,0.3534,88403.0,88397.0,0.00568]
[1766143849867,0.22439,88403.0,88397.0,0.00568]
[1766143851798,0.22439,88403.0,88395.0,0.00568]
[1766143851947,0.28094907,88404.0,88391.0,0.00568]
[1766143852175,0.22439,88399.0,88391.0,0.00568]
[1766143852401,0.3534,88396.0,88391.0,0.00568]
[1766143853081,0.22439,88396.0,88391.0,0.00568]
[1766143854123,0.00568,88399.0,88391.0,0.00568]
[1766143856721,0.00568,88399.0,88393.0,0.01131311]
[1766143856946,0.0025,88409.0,88396.0,0.07532]
[1766143857153,0.0025,88407.0,88399.0,0.12731]
[1766143857405,0.02714134,88414.0,88400.0,0.0025]
[1766143857703,0.00568,88417.0,88408.0,0.12981]
[1766143858980,0.00568,88417.0,88377.0,0.12731]
[1766143858981,0.01131285,88395.0,88377.0,0.12731]
[1766143859201,0.001097,88408.0,88376.0,0.00568]
[1766143859202,0.01131452,88382.0,88376.0,0.00568]
[1766143859405,0.011314,88386.0,88376.0,9.86e-05]
[1766143859406,0.22439,88383.0,88376.0,9.86e-05]
[1766143859629,0.3534,88383.0,88376.0,9.86e-05]
[1766143860036,0.22439,88383.0,88376.0,9.86e-05]
[1766143860237,0.00568,88387.0,88376.0,9.86e-05]
[1766143860647,0.00568,88387.0,88377.0,0.0025]
[1766143861249,0.00568,88387.0,88377.0,0.0023]
[1766143861771,0.00568,88389.0,88378.0,0.21702]
[1766143861992,0.36471272,88396.0,88381.0,0.12731]
[1766143861993,0.00568,88391.0,88381.0,0.12731]
[1766143862152,0.00568,88391.0,88383.0,0.12731]
[1766143862355,0.00568,88396.0,88384.0,0.12731]
[1766143862555,0.001097,88384.0,88382.0,0.00568]
[1766143863124,0.22439,88393.0,88382.0,0.00568]
[1766143864483,0.00568,88396.0,88382.0,0.00568]
[1766143864689,0.00568,88396.0,88385.0,0.01131413]
[1766143864966,0.00568,88401.0,88389.0,0.13869362]
[1766143865170,0.0025,88403.0,88393.0,0.12738]
[1766143866378,0.001097,88393.0,88384.0,0.08118]
[1766143866599,0.001097,88393.0,88377.0,0.0025]
[1766143866820,0.33561,88392.0,88382.0,0.0025]
[1766143869238,0.13001,88398.0,88382.0,0.12988]
[1766143869634,0.13001,88398.0,88386.0,0.011314]
[1766143869902,0.13001,88398.0,88387.0,0.06788322]
[1766143870102,0.13001,88398.0,88387.0,0.01131388]
[1766143870103,0.00568,88398.0,88387.0,0.01131388]
[1766143870309,0.00568,88398.0,88386.0,0.21789184]
[1766143870640,0.00568,88398.0,88387.0,0.01131388]
[1766143870779,0.00568,88398.0,88388.0,0.01131375]
[1766143870991,0.00568,88403.0,88396.0,0.12738]
[1766143871195,0.00568,88403.0,88397.0,0.07037537]
[1766143871401,0.00568,88408.0,88399.0,0.0025]
[1766143872362,0.001097,88399.0,88395.0,0.07883]
[1766143872612,0.001097,88399.0,88396.0,0.0025]
[1766143872961,0.12433,88407.0,88396.0,0.00568]
[1766143873164,0.12433,88405.0,88391.0,0.0025]
[1766143873345,0.02714134,88399.0,88391.0,0.0025]
[1766143873568,0.02714134,88399.0,88389.0,0.01381362]
[1766143873780,0.34129,88402.0,88389.0,0.01381362]
[1766143874179,0.34129,88402.0,88389.0,0.0025]
[1766143874406,0.34129,88402.0,88391.0,0.0025]
[1766143874958,0.21696,88402.0,88392.0,0.05656612]
[1766143875133,0.21696,88402.0,88391.0,0.05906643]
[1766143875427,0.21696,88402.0,88391.0,0.0025]
[1766143875576,0.21696,88402.0,88392.0,0.01131324]
[1766143875777,0.21696,88402.0,88391.0,0.0025]
[1766143876180,0.21696,88402.0,88392.0,0.01131324]
[1766143876377,0.00568,88402.0,88393.0,0.12738]
[1766143876672,0.00568,88405.0,88398.0,0.01131247]
[1766143876877,0.00568,88405.0,88396.0,0.19525612]
[1766143877095,0.00568,88405.0,88393.0,0.08681311]
[1766143877096,0.00568,88405.0,88393.0,0.14337747]
[1766143877296,0.00568,88405.0,88393.0,0.0755]
[1766143877697,0.20574,88405.0,88392.0,0.01131324]
[1766143877982,0.20574,88405.0,88393.0,0.01131311]
[1766143878182,0.20574,88405.0,88394.0,0.01131298]
[1766143878387,0.20574,88405.0,88394.0,0.0678779]
[1766143878584,0.12193,88403.0,88390.0,0.0025]
[1766143878786,0.32199,88402.0,88390.0,0.0025]
[1766143879210,0.02714134,88399.0,88390.0,0.0025]
[1766143879409,0.22720134,88399.0,88390.0,0.0025]
[1766143879614,0.22720134,88399.0,88390.0,0.01381349]
[1766143880051,0.22720134,88399.0,88390.0,0.0025]
[1766143880226,0.20006,88399.0,88392.0,0.01381324]
[1766143880442,0.20006,88399.0,88392.0,0.0025]
[1766143881278,0.20006,88399.0,88393.0,0.01131311]
[1766143881458,0.20006,88399.0,88392.0,0.07037931]
[1766143881658,0.20006,88399.0,88393.0,0.0678785]
[1766143881878,0.12193,88402.0,88395.0,0.01131285]
[1766143882036,0.12193,88402.0,88394.0,0.01131298]
[1766143882246,0.12193,88402.0,88395.0,0.01131285]
[1766143882447,0.00568,88405.0,88398.0,0.0025]
[1766143882673,0.00568,88404.0,88399.0,0.01381234]
[1766143882873,0.00568,88404.0,88401.0,0.0025]
[1766143883210,0.00568,88406.0,88401.0,0.0025]
[1766143884345,0.00568,88406.0,88404.0,0.0025]
[1766143884762,0.00568,88407.0,88404.0,0.0025]
[1766143884972,0.20006,88412.0,88404.0,0.0025]
[1766143885197,0.00568,88409.0,88404.0,0.1202]
[1766143885398,0.00568,88409.0,88404.0,0.0025]
[1766143885750,0.00568,88409.0,88404.0,0.001403]
[1766143886721,0.32199,88424.0,88409.0,0.001099]
[1766143886935,0.00818,88423.0,88410.0,0.1177]
[1766143887332,0.20006,88421.0,88409.0,0.01131106]
[1766143887577,0.20006,88421.0,88407.0,0.01131132]
[1766143887784,0.20006,88421.0,88408.0,0.01131119]
[1766143888002,0.20006,88421.0,88409.0,0.01131106]
[1766143888378,0.20006,88421.0,88409.0,0.01051106]
[1766143889043,0.0025,88423.0,88420.0,0.05654812]
[1766143889251,0.12761,88436.0,88421.0,0.001099]
[1766143889501,0.02714134,88431.0,88418.0,0.05162]
[1766143889706,0.20006,88430.0,88418.0,0.01130991]
[1766143890110,0.20006,88430.0,88417.0,0.01699004]
[1766143890420,0.20006,88430.0,88417.0,0.00568]
[1766143890724,0.00568,88429.0,88417.0,0.00568]
[1766143890920,0.20006,88426.0,88414.0,0.00568]
[1766143891223,0.20006,88423.0,88414.0,0.00568]
[1766143891449,0.32199,88423.0,88414.0,0.00568]
[1766143891721,0.32199,88423.0,88405.0,0.01131157]
[1766143891722,0.12193,88415.0,88409.0,0.00568]
[1766143891958,0.20006,88414.0,88405.0,0.00568]
[1766143892393,0.20006,88414.0,88406.0,0.01131144]
[1766143892586,0.20006,88414.0,88405.0,0.01699157]
[1766143892817,0.20006,88414.0,88405.0,0.00568]
[1766143893175,0.20006,88414.0,88405.0,0.01699157]
[1766143893373,0.20006,88414.0,88406.0,0.01131144]
[1766143893577,0.20006,88414.0,88405.0,0.01699157]
[1766143893842,0.20006,88421.0,88406.0,0.01381144]
[1766143894010,0.00568,88423.0,88406.0,0.01381144]
[1766143894193,0.20341,88419.0,88406.0,0.0025]
[1766143894396,0.32176,88417.0,88406.0,0.01381144]
[1766143894598,0.32176,88417.0,88408.0,0.01131119]
[1766143894794,0.32176,88417.0,88409.0,0.01131106]
[1766143895069,0.32176,88417.0,88410.0,0.01131093]
[1766143895232,0.0025,88429.0,88419.0,0.01130978]
[1766143895448,0.00568,88431.0,88423.0,0.01130927]
[1766143895645,0.00568,88431.0,88424.0,0.01130914]
[1766143895848,0.00568,88431.0,88425.0,0.01130901]
[1766143896053,0.00568,88431.0,88426.0,0.01130889]
[1766143896254,9.853e-05,88436.0,88431.0,0.001099]
[1766143896811,0.20405617,88448.0,88438.0,0.01130735]
[1766143897054,0.00632617,88448.0,88437.0,0.11639]
[1766143897257,0.0025,88447.0,88435.0,0.04495]
[1766143897462,0.0025,88447.0,88435.0,0.05625774]
[1766143897680,0.0025,88447.0,88435.0,0.04495]
[1766143897901,0.0025,88447.0,88434.0,0.01130786]
[1766143898102,0.11835,88443.0,88433.0,0.02261599]
[1766143898303,0.11835,88443.0,88432.0,0.00568]
[1766143898304,0.00064617,88448.0,88432.0,0.12207]
[1766143898420,0.20341,88446.0,88432.0,0.00568]
[1766143898625,0.20341,88444.0,88432.0,0.00568]
[1766143898844,0.11835,88444.0,88429.0,0.0442]
[1766143899059,0.20341,88442.0,88430.0,0.00568]
[1766143899265,0.11835,88443.0,88430.0,0.00577853]
[1766143899463,0.11835,88441.0,88430.0,0.00577853]
[1766143899662,0.20341,88442.0,88430.0,0.00577853]
[1766143899866,0.00568,88445.0,88430.0,0.00577853]
[1766143899867,0.11835,88441.0,88430.0,0.00577853]
[1766143900076,0.32176,88441.0,88430.0,0.00577853]
[1766143901174,0.32176,88439.0,88429.0,0.00568]
[1766143901376,0.11835,88435.0,88424.0,0.0025]
[1766143901587,0.32176,88430.0,88412.0,0.01131068]
[1766143901825,0.32176,88420.0,88408.0,0.04528]
[1766143902001,0.32176,88420.0,88409.0,0.00568]
[1766143902202,0.00568,88422.0,88409.0,0.00568]
[1766143902437,0.20341,88417.0,88409.0,0.00568]
[1766143902674,0.06785726,88421.0,88409.0,0.00568]
[1766143902675,0.01130953,88421.0,88409.0,0.00568]
[1766143902868,0.01709822,88422.0,88392.0,0.13770324]
[1766143902869,0.11835,88414.0,88392.0,0.13770324]
[1766143903069,0.20341,88411.0,88396.0,0.01131272]
[1766143903370,0.20341,88411.0,88399.0,0.0025]
[1766143903528,0.11835,88408.0,88394.0,0.0735577]
[1766143903757,0.20341,88406.0,88396.0,0.06787632]
[1766143903971,0.20341,88406.0,88398.0,0.01131247]
[1766143904179,0.20341,88406.0,88397.0,0.0113126]
[1766143904377,0.20341,88406.0,88394.0,0.01699298]
[1766143904737,0.20341,88406.0,88397.0,0.0113126]
[1766143904936,0.20341,88406.0,88396.0,0.01131272]
[1766143905169,0.20341,88406.0,88398.0,0.01131247]
[1766143905579,0.20341,88406.0,88400.0,0.01131221]
[1766143905781,0.00568,88410.0,88406.0,0.01131144]
[1766143905983,0.00568,88410.0,88403.0,0.01131183]
[1766143906158,0.00568,88410.0,88404.0,0.0113117]
[1766143906374,0.00568,88410.0,88407.0,0.06786729]
[1766143906780,0.00568,88419.0,88411.0,0.0113108]
[1766143906975,0.00568,88419.0,88411.0,0.05655394]
[1766143907214,0.00010882,88422.0,88416.0,0.01131017]
[1766143907360,0.01130735,88438.0,88418.0,0.06785946]
[1766143907361,0.00568,88427.0,88418.0,0.06785946]
[1766143907564,0.00568,88439.0,88425.0,0.01130901]
[1766143907766,0.00568,88438.0,88428.0,0.01130863]
[1766143908126,0.00568,88438.0,88425.0,0.0025]
[1766143908325,0.00568,88438.0,88430.0,0.01130837]
[1766143908528,0.00568,88438.0,88428.0,0.0025]
[1766143909198,0.20909,88438.0,88428.0,0.0025]
[1766143909398,0.20909,88438.0,88428.0,0.001401]
[1766143909781,0.20909,88438.0,88424.0,0.01130914]
[1766143909982,0.20909,88438.0,88426.0,0.01130889]
[1766143910250,0.20909,88438.0,88427.0,0.01130876]
[1766143910678,0.20909,88438.0,88427.0,0.06785252]
[1766143910882,0.04528,88444.0,88430.0,0.04954]
[1766143911008,0.00568,88441.0,88438.0,0.001099]
[1766143911216,0.00568,88441.0,88432.0,0.01130812]
[1766143911439,0.00568,88441.0,88431.0,0.2280995]
[1766143911923,0.00568,88441.0,88431.0,0.16025]
[1766143912217,0.00568,88441.0,88428.0,0.00568]
[1766143912832,0.20341,88442.0,88428.0,0.00568]
[1766143912974,0.20341,88441.0,88428.0,0.01698863]
[1766143913177,0.11835,88440.0,88428.0,0.00568]
[1766143914372,0.32176,88438.0,88423.0,0.0025]
[1766143914581,0.01130799,88433.0,88418.0,0.11639]
[1766143914788,0.11835,88434.0,88418.0,0.00010882]
[1766143914789,0.20341,88430.0,88418.0,0.00010882]
[1766143915001,0.00568,88429.0,88418.0,0.00010882]
[1766143917867,0.00568,88429.0,88418.0,0.01091873]
[1766143918317,0.00568,88429.0,88419.0,0.01130978]
[1766143919154,0.00568,88429.0,88418.0,0.06746818]
[1766143919591,0.00568,88429.0,88418.0,0.01091873]
[1766143919853,0.20341,88428.0,88417.0,0.00568]
[1766143920010,0.00010886,88428.0,88418.0,0.12769991]
[1766143920212,0.00010886,88428.0,88419.0,0.11639]
[1766143920629,0.00010886,88428.0,88420.0,0.01130965]
[1766143920784,8.6e-07,88428.0,88422.0,0.0113094]
[1766143921007,0.00568,88436.0,88428.0,0.12769863]
[1766143921215,0.00568,88435.0,88430.0,0.01130837]
[1766143921588,0.00568,88435.0,88428.0,0.11639]
[1766143921730,0.004689,88435.0,88428.0,0.11639]
[1766143921934,0.00568,88440.0,88433.0,0.06784782]
[1766143922141,0.00568,88440.0,88433.0,0.01130799]
[1766143922341,0.20341,88446.0,88436.0,0.01130761]
[1766143922539,0.00568,88445.0,88436.0,0.01130761]
[1766143922741,0.00568,88445.0,88434.0,0.01130786]
[1766143922959,0.32176,88444.0,88429.0,0.0025]
[1766143923165,0.20341,88443.0,88426.0,0.11889]
[1766143923364,0.20341,88443.0,88426.0,0.13019889]
[1766143923573,0.11835,88443.0,88426.0,0.11889]
[1766143923912,0.0441278,88445.0,88426.0,0.11889]
[1766143923913,0.32176,88434.0,88426.0,0.0025]
[1766143924136,0.001099,88426.0,88424.0,0.00568]
[1766143924358,0.18624,88433.0,88424.0,0.00568]
[1766143928222,0.00568,88434.0,88422.0,0.0113094]
[1766143928429,0.00568,88434.0,88423.0,0.12671]
[1766143929013,0.00568,88434.0,88423.0,0.13801927]
[1766143929218,0.00568,88434.0,88424.0,0.01130914]
[1766143929623,0.00568,88440.0,88431.0,0.12671]
[1766143929965,0.00568,88440.0,88431.0,0.15697]
[1766143930565,0.00568,88440.0,88431.0,0.03026]
[1766143930740,0.01130722,88439.0,88428.0,0.02511727]
[1766143930932,0.001099,88431.0,88428.0,0.0025]
[1766143931352,0.30075,88439.0,88428.0,0.0025]
[1766143931554,0.01130774,88435.0,88407.0,0.02131132]
[1766143931753,0.02714134,88431.0,88411.0,0.01]
[1766143931971,0.30075,88428.0,88418.0,0.01130991]
[1766143932184,0.30075,88428.0,88416.0,0.01131017]
[1766143932388,0.18624,88428.0,88417.0,0.06785961]
[1766143932563,0.18624,88428.0,88419.0,0.01130978]
[1766143932749,0.18624,88428.0,88418.0,0.01130991]
[1766143932934,0.18624,88428.0,88417.0,0.06785961]
[1766143933599,0.02714134,88449.0,88429.0,0.12671]
[1766143933742,0.00568,88443.0,88429.0,0.13239]
[1766143933941,0.19192,88443.0,88429.0,0.13239]
[1766143934398,0.19192,88443.0,88429.0,0.18893235]
[1766143934597,0.19192,88443.0,88430.0,0.06784902]
[1766143934776,0.19192,88443.0,88430.0,0.19455902]
[1766143934976,0.19192,88443.0,88430.0,0.12671]
[1766143935792,0.19192,88443.0,88430.0,0.13801837]
[1766143935980,0.19192,88443.0,88431.0,0.01130825]
[1766143936183,0.19192,88443.0,88430.0,0.19456023]
[1766143936399,0.19192,88443.0,88431.0,0.01130825]
[1766143936929,0.001099,88431.0,88429.0,0.00568]
[1766143937155,0.00199998,88480.0,88449.0,0.01130595]
[1766143937368,0.01130173,88482.0,88460.0,0.074]
[1766143937587,0.1145,88480.0,88464.0,0.02714134]
[1766143937793,0.1145,88480.0,88465.0,0.0113039]
[1766143937997,0.1145,88480.0,88464.0,0.02714134]
[1766143938500,0.1145,88478.0,88464.0,0.02714134]
[1766143938941,0.01130224,88478.0,88460.0,0.0715]
[1766143939075,0.1935025,88476.0,88460.0,0.0715]
[1766143939278,0.2967,88475.0,88460.0,0.0715]
[1766143939492,0.04528,88474.0,88460.0,0.08280454]
[1766143939812,0.00568,88473.0,88461.0,0.01130441]
[1766143940020,0.00568,88473.0,88462.0,0.01130428]
[1766143940371,0.00568,88473.0,88464.0,0.02714134]
[1766143940574,0.0025,88479.0,88466.0,0.06514]
[1766143940736,0.0025,88479.0,88466.0,0.07644377]
[1766143940949,0.00036313,88480.0,88470.0,0.0025]
[1766143941153,3.13e-06,88482.0,88478.0,0.02714134]
[1766143941364,0.00568,88481.0,88473.0,0.02260576]
[1766143941539,0.00568,88480.0,88473.0,0.00010885]
[1766143941898,0.2967,88479.0,88473.0,0.00010885]
[1766143942199,0.2967,88479.0,88473.0,8.5e-07]
[1766143942357,0.17101061,88479.0,88473.0,8.5e-07]
[1766143942565,0.2967,88479.0,88473.0,8.5e-07]
[1766143943100,0.1822,88479.0,88473.0,8.5e-07]
[1766143943485,0.00080022,88474.0,88473.0,8.5e-07]
[1766143943670,0.00069222,88474.0,88473.0,8.5e-07]
[1766143944751,0.00637222,88474.0,88473.0,8.5e-07]
[1766143945791,0.30307222,88474.0,88473.0,8.5e-07]
[1766143946757,0.34835222,88474.0,88473.0,8.5e-07]
[1766143948599,0.40486599,88474.0,88473.0,8.5e-07]
[1766143949584,0.34835222,88474.0,88473.0,8.5e-07]
[1766143951248,0.40486599,88474.0,88473.0,8.5e-07]
[1766143954216,0.01130339,88469.0,88453.0,0.0025]
[1766143954440,0.2982,88467.0,88453.0,0.0025]
[1766143955041,0.18066,88465.0,88453.0,0.0025]
[1766143955224,0.2982,88464.0,88453.0,0.0025]
[1766143956536,0.18066,88464.0,88453.0,0.0025]